,Expense Area,Cost Centre,Expense Type,Account Code,Amount,Supplier Name,SupplierId,Pay Date,Transaction No.,,VAT No.,Co. Reg. No.,VAT No.,Voucher Type,�,Trans Date
INSERTED DETAIL,Operations & Traded Services,SMT70,Subscriptions,421,2540,APSE,100052,16/05/2024,10325105,TC,,,519 2869 15,PI,3048,45385
INSERTED DETAIL,Highways,HIG20,Materials,303,1459.24,Aggregate Industries UK Limited,100134,16/05/2024,10324534,TC,,,533260571,PI,1751.09,45364
INSERTED DETAIL,Grass Cutting- Parishes,PKS13,External Contractor & Operator,742,4091,Brinklow Parish Council,100157,02/05/2024,10324682,NT,,,,PN,4091,45363
INSERTED DETAIL,Council Tax and NNDR Collection,CTX01,External Legal Costs,741,241.52,Bristow & Sutor,100159,02/05/2024,10324412,TC,,1431688,294694111,PN,1090.23,45389
INSERTED DETAIL,Council Tax and NNDR Collection,CTX01,External Legal Costs,741,178.99,Bristow & Sutor,100159,16/05/2024,10324769,TC,,1431688,294694111,PN,1217.45,45403
INSERTED DETAIL,Broadband & internet,TEL01,Telephone Expenses,371,4.68,British Telecommunications Plc,100161,02/05/2024,10324582,TC,,,245719348,PN,3641.38,45404
INSERTED DETAIL,"Landlines, faxes, alarms & misc.",TEL02,Telephone Expenses,371,3029.81,British Telecommunications Plc,100161,02/05/2024,10324582,TC,,,245719348,PN,3641.38,45404
INSERTED DETAIL,Control Centre (HRA),CCE00,Telephone Expenses,371,10898.99,British Telecommunications Plc,100161,30/05/2024,10325270,TC,,,245719348,PN,13078.78,45422
INSERTED DETAIL,Unplanned Maintenance and Repair,UMR00,Vehicle Repair and Maintenance,200,2986,Charles Watts Engineering Ltd,100302,09/05/2024,10324965,TC,,466266,272 7071 59,PI,3583.2,45412
INSERTED DETAIL,Unplanned Maintenance and Repair,UMR00,External Contractor & Operator,742,1509.58,Cwikskip (Tailby Brack Ltd),100325,23/05/2024,10325249,TC,,,565752315,PI,1811.5,45431
INSERTED DETAIL,AGM Exhibitions/Outreach,AGM02,Subscriptions,421,2200,Contemporary Art Society,100422,02/05/2024,10324674,TC,,255486,239 2809 43,PI,2640,45383
INSERTED DETAIL,ITC & Support Services,CIS10,Photocopying,354,1210.56,Canon (UK) Limited,100514,02/05/2024,10324286,TC,,1264300,523797128,PN,1452.67,45386
INSERTED DETAIL,ITC & Support Services,CIS10,Photocopying,354,905.98,Canon (UK) Limited,100514,02/05/2024,10324287,TC,,1264300,523797128,PN,1087.18,45386
INSERTED DETAIL,ITC & Support Services,CIS10,Photocopying,354,1307.84,Canon (UK) Limited,100514,02/05/2024,10324288,TC,,1264300,523797128,PN,1569.41,45386
INSERTED DETAIL,ITC & Support Services,CIS10,Photocopying,354,964.38,Canon (UK) Limited,100514,02/05/2024,10324306,TC,,1264300,523797128,PN,1157.26,45386
INSERTED DETAIL,ITC & Support Services,CIS10,Photocopying,354,2102.03,Canon (UK) Limited,100514,02/05/2024,10324314,TC,,1264300,523797128,PN,2522.44,45386
INSERTED DETAIL,Garage,WVR00,Vehicle Repair and Maintenance,200,2303.82,Dennis Eagle Ltd,100559,02/05/2024,10324347,TC,,,272 4968 27,PI,2764.59,45390
INSERTED DETAIL,Garage,WVR00,Vehicle Repair and Maintenance,200,670.8,Dennis Eagle Ltd,100559,09/05/2024,10324417,TC,,,272 4968 27,PN,804.96,45392
INSERTED DETAIL,Garage,WVR00,Vehicle Repair and Maintenance,200,1744.83,Dennis Eagle Ltd,100559,09/05/2024,10324465,TC,,,272 4968 27,PI,2093.8,45397
INSERTED DETAIL,Garage,WVR00,Vehicle Repair and Maintenance,200,493.11,Dennis Eagle Ltd,100559,16/05/2024,10324594,TC,,,272 4968 27,PI,591.73,45398
INSERTED DETAIL,Garage,WVR00,Vehicle Repair and Maintenance,200,813.83,Dennis Eagle Ltd,100559,16/05/2024,10324617,TC,,,272 4968 27,PN,976.59,45404
INSERTED DETAIL,Garage,WVR00,Vehicle Repair and Maintenance,200,4368.27,Dennis Eagle Ltd,100559,16/05/2024,10324639,TC,,,272 4968 27,PI,5241.92,45400
INSERTED DETAIL,Garage,WVR00,Vehicle Repair and Maintenance,200,510,Dennis Eagle Ltd,100559,09/05/2024,10324928,TC,,,272 4968 27,PI,612,45384
INSERTED DETAIL,Parks,PKS00,Maintenance of Equipment,301,1127.5,GB Sport & Leisure UK Ltd,100920,30/05/2024,10325368,TC,,,634552540,PI,1353,45434
INSERTED DETAIL,Borough Elections,ELC00,New Equipment,300,875,IE Office Equipment Ltd,101114,02/05/2024,10324650,CS,,,661544339,PI,1050,45404
INSERTED DETAIL,WSU Depot,WDP00,New Equipment,300,560,IE Office Equipment Ltd,101114,02/05/2024,10324651,CS,,,661544339,PI,672,45404
INSERTED DETAIL,Crematorium,CRM00,Furniture,302,430,IE Office Equipment Ltd,101114,16/05/2024,10324802,CS,,,661544339,PI,516,45412
INSERTED DETAIL,Supervision and Management General,MAN00,New Equipment,300,9148.84,IE Office Equipment Ltd,101114,16/05/2024,10325000,CS,,,661544339,PI,10978.61,45420
INSERTED DETAIL,Supervision and Management General,MAN00,New Equipment,300,5079.79,IE Office Equipment Ltd,101114,23/05/2024,10325232,CS,,,661544339,PI,6095.75,45429
INSERTED DETAIL,Housing Management,MAN22,Training fees,11,2875,Chartered Institute Of Housing,101122,09/05/2024,10323484,TC,,,233845950,PI,3450,45356
INSERTED DETAIL,Council Tax and NNDR Collection,CTX01,Training fees,11,520,Institute Of Revenues Rating & Valuation,101124,09/05/2024,10324761,TC,,223447,626604544,PI,624,45408
INSERTED DETAIL,Highways,HIG20,External Contractor & Operator,742,5371.83,Clews Recycling Limited,101213,09/05/2024,10324572,TC,,,747316619,PN,6446.19,45388
INSERTED DETAIL,Street Cleansing General,STC00,External Contractor & Operator,742,440,Clews Recycling Limited,101213,09/05/2024,10324908,TC,,,747316619,PI,528,45411
INSERTED DETAIL,Grounds Maintenance,PKS20,Materials,303,670.54,Melbros Ltd,101291,09/05/2024,10324816,TC,,,420820590,PI,804.65,45413
INSERTED DETAIL,Art Gallery and Museum,AGM00,Subscriptions,421,677.44,Museums Association,101361,16/05/2024,10324855,TC,,31024,523040792,PI,696,45405
INSERTED DETAIL,Parks,PKS00,R&M External Contractors,100,200,Post To Post Fencing,101490,02/05/2024,10324736,CS,,,7729350133,PN,2790,45392
INSERTED DETAIL,Parks,PKS00,Maintenance of Equipment,301,1525,Post To Post Fencing,101490,02/05/2024,10324736,CS,,,7729350133,PN,2790,45392
INSERTED DETAIL,Section 106 Grounds Maintenance,PKS16,External Contractor & Operator,742,600,Post To Post Fencing,101490,02/05/2024,10324736,CS,,,7729350133,PN,2790,45392
INSERTED DETAIL,Garage,WVR00,Vehicle Repair and Maintenance,200,465,Rugby Mobile Windscreens,101520,09/05/2024,10324924,TC,,,307407185,PI,558,45412
INSERTED DETAIL,Garage,WVR00,Vehicle Repair and Maintenance,200,465,Rugby Mobile Windscreens,101520,16/05/2024,10325077,TC,,,307407185,PI,558,45415
INSERTED DETAIL,Garage,WVR00,Vehicle Repair and Maintenance,200,465,Rugby Mobile Windscreens,101520,30/05/2024,10325421,TC,,,307407185,PI,558,45432
INSERTED DETAIL,Building Control Services,BCS00,Postage & Distribution,370,1.63,Royal Mail,101554,02/05/2024,10324373,TC,,,,PN,741.52,45387
INSERTED DETAIL,Housing Advice & Benefits Team,CAS00,Postage & Distribution,370,39.9,Royal Mail,101554,02/05/2024,10324373,TC,,,,PN,741.52,45387
INSERTED DETAIL,Central Business Support Services,CSS15,Postage & Distribution,370,31.98,Royal Mail,101554,02/05/2024,10324373,TC,,,,PN,741.52,45387
INSERTED DETAIL,Council Tax and NNDR Collection,CTX01,Postage & Distribution,370,144.95,Royal Mail,101554,02/05/2024,10324373,TC,,,,PN,741.52,45387
INSERTED DETAIL,Electoral Registration,ERG00,Postage & Distribution,370,117.64,Royal Mail,101554,02/05/2024,10324373,TC,,,,PN,741.52,45387
INSERTED DETAIL,Supervision and Management General,MAN00,Postage & Distribution,370,41.71,Royal Mail,101554,02/05/2024,10324373,TC,,,,PN,741.52,45387
INSERTED DETAIL,Planning General/Income,PLN00,Postage & Distribution,370,229.57,Royal Mail,101554,02/05/2024,10324373,TC,,,,PN,741.52,45387
INSERTED DETAIL,Domestic Waste Collection/Recycling,REF00,Postage & Distribution,370,7.42,Royal Mail,101554,02/05/2024,10324373,TC,,,,PN,741.52,45387
INSERTED DETAIL,Household Green Waste Collections,REF06,Postage & Distribution,370,4.04,Royal Mail,101554,02/05/2024,10324373,TC,,,,PN,741.52,45387
INSERTED DETAIL,Visitor Centre,VSC00,Postage & Distribution,370,4.47,Royal Mail,101554,02/05/2024,10324373,TC,,,,PN,741.52,45387
INSERTED DETAIL,Art Gallery and Museum,AGM00,Postage & Distribution,370,7.14,Royal Mail,101554,09/05/2024,10324565,TC,,,,PN,1061.57,45394
INSERTED DETAIL,Building Control Services,BCS00,Postage & Distribution,370,4.19,Royal Mail,101554,09/05/2024,10324565,TC,,,,PN,1061.57,45394
INSERTED DETAIL,Housing Advice & Benefits Team,CAS00,Postage & Distribution,370,86.43,Royal Mail,101554,09/05/2024,10324565,TC,,,,PN,1061.57,45394
INSERTED DETAIL,Central Business Support Services,CSS15,Postage & Distribution,370,162.7,Royal Mail,101554,09/05/2024,10324565,TC,,,,PN,1061.57,45394
INSERTED DETAIL,Council Tax and NNDR Collection,CTX01,Postage & Distribution,370,392.68,Royal Mail,101554,09/05/2024,10324565,TC,,,,PN,1061.57,45394
INSERTED DETAIL,Electoral Registration,ERG00,Postage & Distribution,370,32.48,Royal Mail,101554,09/05/2024,10324565,TC,,,,PN,1061.57,45394
INSERTED DETAIL,Supervision and Management General,MAN00,Postage & Distribution,370,64.22,Royal Mail,101554,09/05/2024,10324565,TC,,,,PN,1061.57,45394
INSERTED DETAIL,Planning General/Income,PLN00,Postage & Distribution,370,74.46,Royal Mail,101554,09/05/2024,10324565,TC,,,,PN,1061.57,45394
INSERTED DETAIL,Domestic Waste Collection/Recycling,REF00,Postage & Distribution,370,57.23,Royal Mail,101554,09/05/2024,10324565,TC,,,,PN,1061.57,45394
INSERTED DETAIL,Household Green Waste Collections,REF06,Postage & Distribution,370,2.79,Royal Mail,101554,09/05/2024,10324565,TC,,,,PN,1061.57,45394
INSERTED DETAIL,Visitor Centre,VSC00,Postage & Distribution,370,2.4,Royal Mail,101554,09/05/2024,10324565,TC,,,,PN,1061.57,45394
INSERTED DETAIL,Central Business Support Services,CSS15,Postage & Distribution,370,434.5,Royal Mail,101554,23/05/2024,10324618,TC,,,,PN,521.4,45405
INSERTED DETAIL,Art Gallery and Museum,AGM00,Postage & Distribution,370,8.36,Royal Mail,101554,16/05/2024,10324962,TC,,,,PN,2489.91,45401
INSERTED DETAIL,Building Control Services,BCS00,Postage & Distribution,370,3.76,Royal Mail,101554,16/05/2024,10324962,TC,,,,PN,2489.91,45401
INSERTED DETAIL,Housing Advice & Benefits Team,CAS00,Postage & Distribution,370,112.54,Royal Mail,101554,16/05/2024,10324962,TC,,,,PN,2489.91,45401
INSERTED DETAIL,Central Business Support Services,CSS15,Postage & Distribution,370,88.32,Royal Mail,101554,16/05/2024,10324962,TC,,,,PN,2489.91,45401
INSERTED DETAIL,Council Tax and NNDR Collection,CTX01,Postage & Distribution,370,388.85,Royal Mail,101554,16/05/2024,10324962,TC,,,,PN,2489.91,45401
INSERTED DETAIL,Electoral Registration,ERG00,Postage & Distribution,370,29.03,Royal Mail,101554,16/05/2024,10324962,TC,,,,PN,2489.91,45401
INSERTED DETAIL,Supervision and Management General,MAN00,Postage & Distribution,370,1272.97,Royal Mail,101554,16/05/2024,10324962,TC,,,,PN,2489.91,45401
INSERTED DETAIL,Planning General/Income,PLN00,Postage & Distribution,370,169.32,Royal Mail,101554,16/05/2024,10324962,TC,,,,PN,2489.91,45401
INSERTED DETAIL,Household Green Waste Collections,REF06,Postage & Distribution,370,4.77,Royal Mail,101554,16/05/2024,10324962,TC,,,,PN,2489.91,45401
INSERTED DETAIL,Visitor Centre,VSC00,Postage & Distribution,370,1.2,Royal Mail,101554,16/05/2024,10324962,TC,,,,PN,2489.91,45401
INSERTED DETAIL,Borough Elections,ELC00,Postage & Distribution,370,5413.82,Royal Mail,101554,16/05/2024,10325024,TC,,,,PN,12993.17,45404
INSERTED DETAIL,Police & Crime Commissioner Elections,ELC05,Postage & Distribution,370,5413.83,Royal Mail,101554,16/05/2024,10325024,TC,,,,PN,12993.17,45404
INSERTED DETAIL,Building Control Services,BCS00,Postage & Distribution,370,3.5,Royal Mail,101554,30/05/2024,10325031,TC,,,,PN,2151.09,45415
INSERTED DETAIL,Housing Advice & Benefits Team,CAS00,Postage & Distribution,370,68.41,Royal Mail,101554,30/05/2024,10325031,TC,,,,PN,2151.09,45415
INSERTED DETAIL,Central Business Support Services,CSS15,Postage & Distribution,370,155.24,Royal Mail,101554,30/05/2024,10325031,TC,,,,PN,2151.09,45415
INSERTED DETAIL,Council Tax and NNDR Collection,CTX01,Postage & Distribution,370,919.76,Royal Mail,101554,30/05/2024,10325031,TC,,,,PN,2151.09,45415
INSERTED DETAIL,Electoral Registration,ERG00,Postage & Distribution,370,20.14,Royal Mail,101554,30/05/2024,10325031,TC,,,,PN,2151.09,45415
INSERTED DETAIL,Supervision and Management General,MAN00,Postage & Distribution,370,491.09,Royal Mail,101554,30/05/2024,10325031,TC,,,,PN,2151.09,45415
INSERTED DETAIL,Planning General/Income,PLN00,Postage & Distribution,370,131.58,Royal Mail,101554,30/05/2024,10325031,TC,,,,PN,2151.09,45415
INSERTED DETAIL,Household Green Waste Collections,REF06,Postage & Distribution,370,4.6,Royal Mail,101554,30/05/2024,10325031,TC,,,,PN,2151.09,45415
INSERTED DETAIL,Unplanned Maintenance and Repair,UMR00,Postage & Distribution,370,0.53,Royal Mail,101554,30/05/2024,10325031,TC,,,,PN,2151.09,45415
INSERTED DETAIL,Building Control Services,BCS00,Postage & Distribution,370,5.48,Royal Mail,101554,23/05/2024,10325032,TC,,,,PN,1695.74,45408
INSERTED DETAIL,Housing Advice & Benefits Team,CAS00,Postage & Distribution,370,53.1,Royal Mail,101554,23/05/2024,10325032,TC,,,,PN,1695.74,45408
INSERTED DETAIL,Central Business Support Services,CSS15,Postage & Distribution,370,445.51,Royal Mail,101554,23/05/2024,10325032,TC,,,,PN,1695.74,45408
INSERTED DETAIL,Council Tax and NNDR Collection,CTX01,Postage & Distribution,370,536.05,Royal Mail,101554,23/05/2024,10325032,TC,,,,PN,1695.74,45408
INSERTED DETAIL,Electoral Registration,ERG00,Postage & Distribution,370,84.8,Royal Mail,101554,23/05/2024,10325032,TC,,,,PN,1695.74,45408
INSERTED DETAIL,Supervision and Management General,MAN00,Postage & Distribution,370,53.67,Royal Mail,101554,23/05/2024,10325032,TC,,,,PN,1695.74,45408
INSERTED DETAIL,Planning General/Income,PLN00,Postage & Distribution,370,220.93,Royal Mail,101554,23/05/2024,10325032,TC,,,,PN,1695.74,45408
INSERTED DETAIL,Domestic Waste Collection/Recycling,REF00,Postage & Distribution,370,5.39,Royal Mail,101554,23/05/2024,10325032,TC,,,,PN,1695.74,45408
INSERTED DETAIL,Household Green Waste Collections,REF06,Postage & Distribution,370,7.05,Royal Mail,101554,23/05/2024,10325032,TC,,,,PN,1695.74,45408
INSERTED DETAIL,Unplanned Maintenance and Repair,UMR00,Postage & Distribution,370,0.53,Royal Mail,101554,23/05/2024,10325032,TC,,,,PN,1695.74,45408
INSERTED DETAIL,Visitor Centre,VSC00,Postage & Distribution,370,5.69,Royal Mail,101554,23/05/2024,10325032,TC,,,,PN,1695.74,45408
INSERTED DETAIL,By-Elections,ELC07,Postage & Distribution,370,928.35,Royal Mail,101554,16/05/2024,10325056,TC,,,,PN,1114.02,45391
INSERTED DETAIL,Corporate Property Central Utilities,CPA02,Water Services,143,704.63,Water Plus,101610,23/05/2024,10325336,TC,,4141390,,PN,704.63,45409
INSERTED DETAIL,Corporate Property Central Utilities,CPA02,Water Services,143,800.99,Water Plus,101610,23/05/2024,10325338,TC,,4141390,,PN,800.99,45409
INSERTED DETAIL,Corporate Property Central Utilities,CPA02,Water Services,143,596.91,Water Plus,101610,23/05/2024,10325340,TC,,4141390,,PN,596.91,45409
INSERTED DETAIL,Legal Services,DEM20,External Legal Costs,741,14074.44,Thomson Reuters,101632,23/05/2024,10325246,TC,,1679046,900548743,PI,14074.44,45383
INSERTED DETAIL,Borough Elections,ELC00,Rents,140,304,St Peter's & St John's Church,101651,16/05/2024,10325002,TC,,,,PN,608,45415
INSERTED DETAIL,Police & Crime Commissioner Elections,ELC05,Rents,140,304,St Peter's & St John's Church,101651,16/05/2024,10325002,TC,,,,PN,608,45415
INSERTED DETAIL,Borough Elections,ELC00,Rents,140,349.65,St George's Church,101652,09/05/2024,10324887,TC,,,,PN,699.3,45352
INSERTED DETAIL,Police & Crime Commissioner Elections,ELC05,Rents,140,349.65,St George's Church,101652,09/05/2024,10324887,TC,,,,PN,699.3,45352
INSERTED DETAIL,Garage,WVR00,Vehicle Repair and Maintenance,200,843.49,Terberg Matec UK,101761,02/05/2024,10324652,TC,,,560 8785 10,PI,1012.19,45404
INSERTED DETAIL,Garage,WVR00,Vehicle Repair and Maintenance,200,1751.76,Terberg Matec UK,101761,16/05/2024,10325099,TC,,,560 8785 10,PI,2102.12,45422
INSERTED DETAIL,Garage,WVR00,Vehicle Repair and Maintenance,200,667.13,Terberg Matec UK,101761,23/05/2024,10325170,TC,,,560 8785 10,PN,800.56,45428
INSERTED DETAIL,Parks,PKS00,External Contractor & Operator,742,578,Withybrook Parish Council,101849,02/05/2024,10324800,NT,,,,PN,578,45412
INSERTED DETAIL,Crime and Disorder Activities,CAD00,Other Miscellaneous Expenses,444,8090,Warwickshire Police & Crime Commissioner,101869,16/05/2024,10324596,TC,,,655328230,PI,8090,45399
INSERTED DETAIL,Human Resources,RES30,Subscriptions,421,10606,West Midlands Employers,101880,02/05/2024,10324687,TC,,,GB729635111,PI,12727.2,45405
INSERTED DETAIL,Human Resources Centralised Services,RES31,Subscriptions,421,3907,West Midlands Employers,101880,02/05/2024,10324852,TC,,,GB729635111,PN,4688.4,45407
INSERTED DETAIL,Biart Place - Capital,BIA00,Capital Contract Payments,5000,32974.54,Warwickshire County Council,101893,02/05/2024,10324153,TC,,,272426659,PI,32974.54,45385
INSERTED DETAIL,Land Charges,LCH00,Payments to Other Local Authorities,710,6513,Warwickshire County Council,101893,23/05/2024,10324678,TC,,,272426659,PI,7815.6,45405
INSERTED DETAIL,Human Resources Centralised Services,RES31,Training fees,11,792,Warwickshire County Council,101893,23/05/2024,10324830,TC,,,272426659,PI,792,45411
INSERTED DETAIL,Grounds Maintenance,PKS20,Contract Hire,220,442.04,TJS Self Drive Rugby,107992,02/05/2024,10324634,TC,,1364047,316915651,PI,530.45,45386
INSERTED DETAIL,Purchase of Vehicles,VHC00,Capital Contract Payments,5000,158900,Scarab Sweepers Ltd,108252,02/05/2024,10324846,TC,,1823459,374500268,PI,190618,45398
INSERTED DETAIL,Crematorium,CRM00,Medical Referees Fees,413,1517,Dunchurch Surgery,108687,09/05/2024,10324964,TC,,,,PI,1517,45415
INSERTED DETAIL,Great Central Walk Bridge,LEI14,R&M External Contractors,100,6415.45,Highway Traffic Management,109404,16/05/2024,10324817,TC,,,661131960,PI,7698.54,45411
INSERTED DETAIL,Domestic Waste Collection/Recycling,REF00,External Contractor & Operator,742,1912.29,Citron Hygiene UK Ltd,110029,16/05/2024,10325016,TC,,2672361,485679480,PI,2294.75,45413
INSERTED DETAIL,Domestic Waste Collection/Recycling,REF00,External Contractor & Operator,742,4551.48,Citron Hygiene UK Ltd,110029,30/05/2024,10325334,TC,,2672361,485679480,PI,5461.78,45383
INSERTED DETAIL,Building Control Services,BCS00,Payments to Other Local Authorities,710,48875,Warwick District Council,111228,23/05/2024,10325020,TC,,,273 4289 41,PN,58650,45408
INSERTED DETAIL,Crematorium,CRM00,Purchases for Resale,305,500,P D Timms,111508,23/05/2024,10325158,TC,,,420836274,PI,600,45427
INSERTED DETAIL,Crematorium,CRM00,Purchases for Resale,305,500,P D Timms,111508,23/05/2024,10325162,TC,,,420836274,PI,600,45427
INSERTED DETAIL,Crematorium,CRM00,Purchases for Resale,305,770,P D Timms,111508,23/05/2024,10325163,TC,,,420836274,PI,924,45427
INSERTED DETAIL,Crematorium,CRM00,Purchases for Resale,305,620,P D Timms,111508,23/05/2024,10325164,TC,,,420836274,PI,744,45427
INSERTED DETAIL,Crematorium,CRM00,Purchases for Resale,305,620,P D Timms,111508,23/05/2024,10325165,TC,,,420836274,PI,744,45427
INSERTED DETAIL,Memorial Safety,BUR07,Miscellaneous Capital Expenditure,5020,500,P D Timms,111508,23/05/2024,10325166,TC,,,420836274,PI,600,45427
INSERTED DETAIL,Crematorium,CRM00,Purchases for Resale,305,500,P D Timms,111508,23/05/2024,10325167,TC,,,420836274,PI,600,45427
INSERTED DETAIL,Sports Development,LSD06,Development Activities,450,1156.25,The Chefs Kitchen (UK) Limited,111682,23/05/2024,10324970,TC,,,765 5649 84,PI,1387.5,45392
INSERTED DETAIL,Council Tax and NNDR Collection,CTX01,Agency Staff,3,1929.2,Civica UK Ltd,112724,16/05/2024,10324137,TC,,1628868,391171065,PI,2315.04,45378
INSERTED DETAIL,CAST - Bed & Breakfast,CAS01,Training fees,11,1020,Civica UK Ltd,112724,09/05/2024,10324385,TC,,1628868,391171065,PI,2922,45393
INSERTED DETAIL,Council Tax and NNDR Collection,CTX01,Training fees,11,1415,Civica UK Ltd,112724,09/05/2024,10324385,TC,,1628868,391171065,PI,2922,45393
INSERTED DETAIL,Council Tax and NNDR Collection,CTX01,Agency Staff,3,1175.98,Civica UK Ltd,112724,09/05/2024,10324419,TC,,1628868,391171065,PI,1411.18,45394
INSERTED DETAIL,Council Tax and NNDR Collection,CTX01,Agency Staff,3,1192.36,Civica UK Ltd,112724,23/05/2024,10324759,TC,,1628868,391171065,PI,1430.83,45408
INSERTED DETAIL,Crematorium,CRM00,Purchases for Resale,305,829.86,Teleshore (UK) Ltd,112868,09/05/2024,10324824,TC,,,655 7480 06,PI,995.83,45411
INSERTED DETAIL,Borough Elections,ELC00,Rents,140,250,Newton Village Hall,113190,16/05/2024,10324997,TC,,,,PN,500,45420
INSERTED DETAIL,Police & Crime Commissioner Elections,ELC05,Rents,140,250,Newton Village Hall,113190,16/05/2024,10324997,TC,,,,PN,500,45420
INSERTED DETAIL,Borough Elections,ELC00,Contract Hire,220,1322.5,Townsend Vehicle Hire,115165,23/05/2024,10325181,TC,,,307700093,PI,1587,45427
INSERTED DETAIL,Garage,WVR00,Subscriptions,421,810.16,Licence Bureau Ltd,117228,16/05/2024,10324988,TC,,4819897,927437796,PI,972.19,45412
INSERTED DETAIL,Street Furniture,HIG01,External Contractor & Operator,742,517.5,Lushglen,117749,23/05/2024,10325151,TC,,,642047363,PI,621,45427
INSERTED DETAIL,Borough Elections,ELC00,Rents,140,250,The Hillmorton Manor Hotel,118672,09/05/2024,10324883,TC,,,936026529,PN,500,45414
INSERTED DETAIL,Police & Crime Commissioner Elections,ELC05,Rents,140,250,The Hillmorton Manor Hotel,118672,09/05/2024,10324883,TC,,,936026529,PN,500,45414
INSERTED DETAIL,Human Resources Centralised Services,RES31,Training fees,11,1559.27,Nelson Training,120218,30/05/2024,10325406,TC,,,781446904,PI,1871.12,45435
INSERTED DETAIL,Members Expenses,MEM00,Staff Overnight Accommodation,422,575,Bournemouth Convention Bureau Ltd,120283,02/05/2024,10324692,TC,,2951566,656497879,PI,690,45379
INSERTED DETAIL,Members Expenses,MEM00,Staff Overnight Accommodation,422,575,Bournemouth Convention Bureau Ltd,120283,02/05/2024,10324693,TC,,2951566,656497879,PI,690,45379
INSERTED DETAIL,Biart Place - Capital,BIA00,Capital Contract Payments,5000,5709.71,Michael Dyson Associates,121502,09/05/2024,10324945,TC,,2903668,567278204,PI,6851.65,45412
INSERTED DETAIL,ITC & Support Services,CIS10,Software Purchase,373,1371.82,Cable & Wireless/T/A Vodafone,123224,23/05/2024,10324718,TC,,,569953277,PN,1646.18,45407
INSERTED DETAIL,Grounds Maintenance,PKS20,Materials,303,890.96,Rigby Taylor Ltd T/A Origin Amenity Solutions,123342,16/05/2024,10325044,TC,,,354646243,PI,1069.14,45420
INSERTED DETAIL,"Communications, Consultation and Information Team",BTR20,Publicity & Marketing,377,1792,Krishna Enterprises Ltd T/A Steers Printing,123590,30/05/2024,10325281,TC,,5176756,844218628,PI,2150.4,45433
INSERTED DETAIL,Planning General/Income,PLN00,Consultancy Costs,740,7000,Lambert Smith Hampton,123593,16/05/2024,10324653,TC,,2521225,500248105,PI,8400,45399
INSERTED DETAIL,Supervision and Management General,MAN00,Asset Management Expenses,448,1500,George and Company (Surveyors) Ltd,126668,16/05/2024,10324608,TC,,,984706870,PN,1800,45404
INSERTED DETAIL,Supervision and Management General,MAN00,Asset Management Expenses,448,-2100,George and Company (Surveyors) Ltd,126668,16/05/2024,10324616,TC,,,984706870,PN,-2520,45404
INSERTED DETAIL,Supervision and Management General,MAN00,Asset Management Expenses,448,850,George and Company (Surveyors) Ltd,126668,16/05/2024,10324835,TC,,,984706870,PI,1020,45412
INSERTED DETAIL,Housing Advice & Benefits Team,CAS00,New Equipment,300,1068,Orbis Protect Ltd,127585,02/05/2024,10324724,TC,,2476859,918 461 510,PI,1281.6,45379
INSERTED DETAIL,Crime and Disorder Activities,CAD00,Development Activities,450,1190,Rapid Vision Systems Ltd,128670,23/05/2024,10325228,TC,,,,PI,1428,45429
INSERTED DETAIL,Democratic Services,DEM10,Consultancy Costs,740,7700,Centre for Governance and Scrutiny,130056,09/05/2024,10324785,TC,,,848489562,PI,9240,45412
INSERTED DETAIL,Car Parks General,CPK01,Cash Collection,744,1440,Jade Security Services Ltd,131711,16/05/2024,10325048,TC,,,642505654,PI,1728,45412
INSERTED DETAIL,Parks,PKS00,Maintenance of Equipment,301,1145.8,Easy-gate Ltd,133591,30/05/2024,10325256,TC,,3837882,737552122,PI,1374.96,45432
INSERTED DETAIL,Customer Support Services,CSS00,Publicity & Marketing,377,718,Language Line Solutions,136338,02/05/2024,10324781,TC,,4823110,833055056,PN,861.6,45382
INSERTED DETAIL,Crematorium,CRM00,Training fees,11,550,The Federation of Burial and Cremation Authorities,137587,02/05/2024,10324688,TC,,,,PI,550,45406
INSERTED DETAIL,Grounds Maintenance,PKS20,External Contractor & Operator,742,1350,D J Whitlock Plant Hire,140156,23/05/2024,10325112,CS,,,833940226,PI,1620,45426
INSERTED DETAIL,Rainsbook Cemetery preparation,BUR06,Capital Contract Payments,5000,3150,D J Whitlock Plant Hire,140156,23/05/2024,10325195,CS,,,833940226,PI,3780,45424
INSERTED DETAIL,Car Parks General,CPK01,External Contractor & Operator,742,956.8,StoneWall Security Ltd,140775,02/05/2024,10324690,TC,,6587546,937387578,PI,1148.16,45382
INSERTED DETAIL,Car Parks General,CPK01,External Contractor & Operator,742,430,StoneWall Security Ltd,140775,02/05/2024,10324691,TC,,6587546,937387578,PI,516,45382
INSERTED DETAIL,Parks,PKS00,R&M External Contractors,100,556.45,StoneWall Security Ltd,140775,09/05/2024,10324898,TC,,6587546,937387578,PI,667.74,45412
INSERTED DETAIL,Car Parks General,CPK01,External Contractor & Operator,742,1019.9,StoneWall Security Ltd,140775,16/05/2024,10325045,TC,,6587546,937387578,PI,1223.88,45412
INSERTED DETAIL,Parks,PKS00,R&M External Contractors,100,430,StoneWall Security Ltd,140775,30/05/2024,10325422,TC,,6587546,937387578,PI,516,45382
INSERTED DETAIL,Domestic Waste Collection/Recycling,REF00,External Contractor & Operator,742,2875,Environment Agency,141170,02/05/2024,10324134,TC,,,,PN,2875,45384
INSERTED DETAIL,Woodside Park,TVR00,Other Agencies,734,890,Environment Agency,141170,23/05/2024,10324951,TC,,,,PN,890,45406
INSERTED DETAIL,Supervision and Management General,MAN00,Other Miscellaneous Expenses,444,5000,Knight Frank LLP,141633,16/05/2024,10324787,TC,,OC305934,238 5156 53,PI,6000,45412
INSERTED DETAIL,Domestic Waste Collection/Recycling,REF00,Materials,303,7848,UK Container Maintenance Limited,143118,16/05/2024,10325050,TC,,3617405,725612740,PI,9417.6,45411
INSERTED DETAIL,Members Expenses,MEM00,Conference & Seminar Fees,401,1701,Local Government Association,144471,02/05/2024,10324342,TC,,,676078107,PI,3402,45390
INSERTED DETAIL,Executive Director,SMT00,Conference & Seminar Fees,401,1134,Local Government Association,144471,02/05/2024,10324342,TC,,,676078107,PI,3402,45390
INSERTED DETAIL,Section 106 Grounds Maintenance,PKS16,External Contractor & Operator,742,16277.25,PHS Ltd T/A Matta Products (UK),145081,16/05/2024,10324630,CS,,770813,542951438,PI,19532.7,45399
INSERTED DETAIL,Section 106 Grounds Maintenance,PKS16,External Contractor & Operator,742,1480,PHS Ltd T/A Matta Products (UK),145081,23/05/2024,10324675,CS,,770813,542951438,PI,1776,45406
INSERTED DETAIL,General Financial Services,GFS00,External Audit Fees,748,37100,Grant Thornton UK LLP,145501,30/05/2024,10325401,TC,,,835586102,PI,44520,45414
INSERTED DETAIL,Art Gallery and Museum,AGM00,Subscriptions,421,1500,Axiell ALM Ltd,145706,30/05/2024,10325382,TC,,1607548,610506978,PN,1800,45435
INSERTED DETAIL,Unplanned Maintenance and Repair,UMR00,Vehicle Repair and Maintenance,200,1139.58,The Rugby Bodyshoppe Ltd,146033,02/05/2024,10324665,TC,,9437778,273 6971 22,PI,1367.5,45404
INSERTED DETAIL,Control Centre (HRA),CCE00,Additional Pension Payments,14,838.71,WCC Pension Fund,146914,23/05/2024,10325179,NT,,,,PI,838.71,45427
INSERTED DETAIL,Parks,PKS00,R&M External Contractors,100,1132.18,PPL PRS,147770,16/05/2024,10325074,TC,,,,PI,1358.61,45342
INSERTED DETAIL,Regulatory Services,REG00,New Equipment,300,634.55,CS Labels Ltd,147823,02/05/2024,10324677,TC,,1267599,101764110,PI,761.46,45405
INSERTED DETAIL,CAST - Private Sector Leasing,CAS03,Private Sector Leasing Scheme Properties,148,2400,Kevin Matthews,147940,16/05/2024,10324941,TC,,,,PN,2400,45419
INSERTED DETAIL,UKSPF Capital - Albert Street Hoarding,UKC11,Capital Contract Payments,5000,500,Jamie Gray Photography,148203,02/05/2024,10323920,TC,,,,PI,500,45371
INSERTED DETAIL,Planning General/Income,PLN00,External Legal Costs,741,2000,Land & Planning Consultants Limited,148693,23/05/2024,10325205,TC,,13154148,,PN,2000,45427
INSERTED DETAIL,The Benn Hall,BHL00,Purchases for Resale,305,1267.11,Brakes,148974,09/05/2024,10324442,TC,,2035315,202935388,PI,1513.49,45393
INSERTED DETAIL,The Benn Hall,BHL00,Purchases for Resale,305,908.39,Brakes,148974,23/05/2024,10324874,TC,,2035315,202935388,PI,1090.07,45407
INSERTED DETAIL,Unauthorised Encampments,TRA00,External Legal Costs,741,1540,The Bailiff Company T/A Civil Enforcement Agents Ltd,149091,16/05/2024,10324993,TC,,10525507,258316101,PI,1848,45171
INSERTED DETAIL,Crematorium,CRM00,Purchases for Resale,305,2897,Vivedia Ltd,149624,09/05/2024,10324867,TC,,,8830029332,PI,3476.4,45412
INSERTED DETAIL,Crematorium,CRM00,Purchases for Resale,305,10745.04,Vivedia Ltd,149624,09/05/2024,10324934,TC,,,8830029332,PI,12894.05,45382
INSERTED DETAIL,Crematorium,CRM00,Purchases for Resale,305,2447,Vivedia Ltd,149624,09/05/2024,10324947,TC,,,8830029332,PI,2936.4,45382
INSERTED DETAIL,Legal Services,DEM20,Agency Staff,3,3559.47,Sellick Partnership Ltd,150142,16/05/2024,10324910,TC,,4156002,864288095,PI,4271.36,45411
INSERTED DETAIL,Legal Services,DEM20,Agency Staff,3,1501.88,Sellick Partnership Ltd,150142,16/05/2024,10324911,TC,,4156002,864288095,PI,1802.26,45405
INSERTED DETAIL,Legal Services,DEM20,Agency Staff,3,2796.72,Sellick Partnership Ltd,150142,16/05/2024,10324912,TC,,4156002,864288095,PI,3356.06,45399
INSERTED DETAIL,Legal Services,DEM20,Agency Staff,3,3168.32,Sellick Partnership Ltd,150142,16/05/2024,10324913,TC,,4156002,864288095,PI,3801.98,45405
INSERTED DETAIL,Legal Services,DEM20,Agency Staff,3,1316.25,Sellick Partnership Ltd,150142,16/05/2024,10324916,TC,,4156002,864288095,PI,1579.5,45397
INSERTED DETAIL,Legal Services,DEM20,Agency Staff,3,1603.13,Sellick Partnership Ltd,150142,16/05/2024,10324917,TC,,4156002,864288095,PI,1923.76,45397
INSERTED DETAIL,Legal Services,DEM20,Agency Staff,3,1451.25,Sellick Partnership Ltd,150142,16/05/2024,10324936,TC,,4156002,864288095,PI,1741.5,45414
INSERTED DETAIL,Legal Services,DEM20,Agency Staff,3,1417.5,Sellick Partnership Ltd,150142,16/05/2024,10324967,TC,,4156002,864288095,PI,1701,45420
INSERTED DETAIL,Legal Services,DEM20,Agency Staff,3,1383.75,Sellick Partnership Ltd,150142,30/05/2024,10325156,TC,,4156002,864288095,PN,1660.5,45425
INSERTED DETAIL,Legal Services,DEM20,Agency Staff,3,2914.07,Sellick Partnership Ltd,150142,30/05/2024,10325157,TC,,4156002,864288095,PN,3496.88,45425
INSERTED DETAIL,Legal Services,DEM20,Agency Staff,3,2972.74,Sellick Partnership Ltd,150142,30/05/2024,10325223,TC,,4156002,864288095,PN,3567.29,45429
INSERTED DETAIL,Legal Services,DEM20,Agency Staff,3,3794.16,Sellick Partnership Ltd,150142,30/05/2024,10325329,TC,,4156002,864288095,PI,4552.99,45432
INSERTED DETAIL,General Financial Services,GFS00,Other Insurance Premiums,440,2500,Arthur J Gallagher T/A Heath Lambert Ltd Client Money,150527,02/05/2024,10324603,TC,,1199129,48474629,PI,2500,45386
INSERTED DETAIL,Unplanned Maintenance and Repair,UMR00,Materials,303,968.86,City Plumbing Supplies,150860,23/05/2024,10325313,TC,,2489546,408556737,PN,1162.64,45411
INSERTED DETAIL,Purchase of Council Houses,PUR00,Capital Contract Payments,5000,17720,HMRC Shipley,150936,02/05/2024,10324752,NT,,,,PN,17720,45405
INSERTED DETAIL,Purchase of Council Houses,PUR00,Capital Contract Payments,5000,7200,HMRC Shipley,150936,30/05/2024,10325453,NT,,,,PN,7200,45441
INSERTED DETAIL,Unplanned Maintenance and Repair,UMR00,Contract Hire,220,999,Aquam Water Services,151091,09/05/2024,10324859,TC,,9527628,214042027,PI,1198.8,45407
INSERTED DETAIL,CAST - Private Sector Leasing,CAS03,Private Sector Leasing Scheme Properties,148,2088,Hedderwick Family LLP,151176,02/05/2024,10324585,TC,,,,PN,2088,45404
INSERTED DETAIL,Borough Elections,ELC00,External Printing,352,801,CFH Docmail Ltd,151481,16/05/2024,10324601,TC,,1716891,720978223,PI,1922.4,45398
INSERTED DETAIL,Police & Crime Commissioner Elections,ELC05,External Printing,352,801,CFH Docmail Ltd,151481,16/05/2024,10324601,TC,,1716891,720978223,PI,1922.4,45398
INSERTED DETAIL,Borough Elections,ELC00,External Printing,352,782.75,CFH Docmail Ltd,151481,30/05/2024,10324927,TC,,1716891,720978223,PI,1158.66,45412
INSERTED DETAIL,Police & Crime Commissioner Elections,ELC05,External Printing,352,182.8,CFH Docmail Ltd,151481,30/05/2024,10324927,TC,,1716891,720978223,PI,1158.66,45412
INSERTED DETAIL,Electoral Registration,ERG00,External Printing,352,1137.72,CFH Docmail Ltd,151481,30/05/2024,10324995,TC,,1716891,720978223,PI,1365.26,45412
INSERTED DETAIL,Borough Elections,ELC00,External Printing,352,2766.49,CFH Docmail Ltd,151481,30/05/2024,10325025,TC,,1716891,720978223,PI,6639.56,45412
INSERTED DETAIL,Police & Crime Commissioner Elections,ELC05,External Printing,352,2766.48,CFH Docmail Ltd,151481,30/05/2024,10325025,TC,,1716891,720978223,PI,6639.56,45412
INSERTED DETAIL,Borough Elections,ELC00,External Printing,352,120.78,CFH Docmail Ltd,151481,30/05/2024,10325042,TC,,1716891,720978223,PI,1385.46,45412
INSERTED DETAIL,Police & Crime Commissioner Elections,ELC05,External Printing,352,120.77,CFH Docmail Ltd,151481,30/05/2024,10325042,TC,,1716891,720978223,PI,1385.46,45412
INSERTED DETAIL,Borough Elections,ELC00,Postage & Distribution,370,456.5,CFH Docmail Ltd,151481,30/05/2024,10325042,TC,,1716891,720978223,PI,1385.46,45412
INSERTED DETAIL,Police & Crime Commissioner Elections,ELC05,Postage & Distribution,370,456.5,CFH Docmail Ltd,151481,30/05/2024,10325042,TC,,1716891,720978223,PI,1385.46,45412
INSERTED DETAIL,Borough Elections,ELC00,External Printing,352,712.93,CFH Docmail Ltd,151481,23/05/2024,10325174,TC,,1716891,720978223,PI,12727.03,45382
INSERTED DETAIL,Police & Crime Commissioner Elections,ELC05,External Printing,352,712.93,CFH Docmail Ltd,151481,23/05/2024,10325174,TC,,1716891,720978223,PI,12727.03,45382
INSERTED DETAIL,Borough Elections,ELC00,Postage & Distribution,370,4590,CFH Docmail Ltd,151481,23/05/2024,10325174,TC,,1716891,720978223,PI,12727.03,45382
INSERTED DETAIL,Police & Crime Commissioner Elections,ELC05,Postage & Distribution,370,4590,CFH Docmail Ltd,151481,23/05/2024,10325174,TC,,1716891,720978223,PI,12727.03,45382
INSERTED DETAIL,The Benn Hall,BHL00,R&M External Contractors,100,860,Outset Production Services Ltd,151499,16/05/2024,10324894,TC,,,,PI,1032,45413
INSERTED DETAIL,CAST - Private Sector Leasing,CAS03,Private Sector Leasing Scheme Properties,148,5400,SV Property Ltd,151504,16/05/2024,10324944,TC,,,,PN,5400,45419
INSERTED DETAIL,Human Resources Centralised Services,RES31,Training fees,11,1395,Belbin Associates,151550,02/05/2024,10324667,TC,,,493222449,PI,1674,45405
INSERTED DETAIL,WSU Depot,WDP00,Personal Protective Clothing,340,1807.42,SMI Group UK,151681,02/05/2024,10324755,TC,,7644080,217124496,PI,2168.89,45407
INSERTED DETAIL,Grounds Maintenance,PKS20,Uniforms,341,840.78,SMI Group UK,151681,23/05/2024,10325172,TC,,7644080,217124496,PI,1008.94,45427
INSERTED DETAIL,Street Cleansing General,STC00,Vehicle Repair and Maintenance,200,2685.39,Volvo Group UK Ltd,151832,16/05/2024,10323844,TC,,2190944,262872148,PI,3222.47,45363
INSERTED DETAIL,Human Resources Centralised Services,RES31,Recruitment Expenses,12,3835,Growth Hub Business Solutions,151836,02/05/2024,10324654,TC,,10369498,66928359,PI,4602,45404
INSERTED DETAIL,Human Resources Centralised Services,RES31,Recruitment Expenses,12,750,Growth Hub Business Solutions,151836,02/05/2024,10324655,TC,,10369498,66928359,PI,900,45404
INSERTED DETAIL,Human Resources Centralised Services,RES31,Recruitment Expenses,12,1325,Growth Hub Business Solutions,151836,02/05/2024,10324657,TC,,10369498,66928359,PI,1590,45404
INSERTED DETAIL,Human Resources Centralised Services,RES31,Recruitment Expenses,12,1895,Growth Hub Business Solutions,151836,16/05/2024,10325023,TC,,10369498,66928359,PI,2274,45421
INSERTED DETAIL,Human Resources Centralised Services,RES31,Recruitment Expenses,12,3835,Growth Hub Business Solutions,151836,30/05/2024,10325267,TC,,10369498,66928359,PI,4602,45432
INSERTED DETAIL,Human Resources Centralised Services,RES31,Recruitment Expenses,12,3835,Growth Hub Business Solutions,151836,30/05/2024,10325268,TC,,10369498,66928359,PI,4602,45432
INSERTED DETAIL,Human Resources Centralised Services,RES31,Recruitment Expenses,12,2495,Growth Hub Business Solutions,151836,30/05/2024,10325418,TC,,10369498,66928359,PI,2994,45436
INSERTED DETAIL,Street Furniture,HIG01,External Contractor & Operator,742,3000,Personal Redacted Data,151849,16/05/2024,10325029,CS,,,261652215,PN,1800,45421
INSERTED DETAIL,Lifeline Renewal Programme,HCE21,Capital Contract Payments,5000,12581,Telealarm Europe Gmbh,151943,23/05/2024,10325226,TC,,,23212107883,PI,12581,45429
INSERTED DETAIL,ITC & Support Services,CIS10,New Equipment,300,698.5,Legacy Telecom Ltd,152108,02/05/2024,10324757,TC,,4674154,,PI,838.2,45366
INSERTED DETAIL,Planning General/Income,PLN00,Agency Staff,3,1546.56,Bloom Procurement Services Ltd,152189,02/05/2024,10324696,TC,,8045123,322673120,PI,1855.87,45406
INSERTED DETAIL,Planning General/Income,PLN00,Agency Staff,3,960.2,Bloom Procurement Services Ltd,152189,09/05/2024,10324920,TC,,8045123,322673120,PN,1152.24,45413
INSERTED DETAIL,Planning General/Income,PLN00,Agency Staff,3,1532.16,Bloom Procurement Services Ltd,152189,16/05/2024,10325035,TC,,8045123,322673120,PI,1838.59,45420
INSERTED DETAIL,Planning General/Income,PLN00,Agency Staff,3,1352.34,Bloom Procurement Services Ltd,152189,23/05/2024,10325152,TC,,8045123,322673120,PI,1622.81,45427
INSERTED DETAIL,Great Central Walk Bridge,LEI14,Capital Contract Payments,5000,4550,Bloom Procurement Services Ltd,152189,30/05/2024,10325331,TC,,8045123,322673120,PI,5460,45432
INSERTED DETAIL,ITC & Support Services,CIS10,Hardware Maintenance,376,1200,ET Works Ltd,152271,02/05/2024,10324726,TC,,3746274,724721250,PI,1440,45407
INSERTED DETAIL,ITC & Support Services,CIS10,Hardware Maintenance,376,496.48,ET Works Ltd,152271,16/05/2024,10324770,TC,,3746274,724721250,PI,595.78,45408
INSERTED DETAIL,Garage,WVR00,Materials,303,611,Contel Ltd,152328,09/05/2024,10324904,TC,,10871572,272901895,PI,733.2,45414
INSERTED DETAIL,Garage,WVR00,Materials,303,430,Contel Ltd,152328,30/05/2024,10325277,TC,,10871572,272901895,PI,516,45433
INSERTED DETAIL,Supervision and Management General,MAN00,External Legal Costs,741,605,St John's Chambers,152437,09/05/2024,10324937,TC,,,989915829,PI,726,45411
INSERTED DETAIL,Section 106 Grounds Maintenance,PKS16,External Contractor & Operator,742,970,RBS Ground Maintenance Ltd,152438,16/05/2024,10324915,TC,,11317609,308088892,PI,1164,45412
INSERTED DETAIL,Human Resources Centralised Services,RES31,Employee wellbeing/Other employee expenses,21,4344.75,Washington House Occupational Health Ltd,152478,16/05/2024,10325047,TC,,7576248,113264844,PN,4529.35,45412
INSERTED DETAIL,Unplanned Maintenance and Repair,UMR00,Contract Hire,220,440,Jetchem Systems Ltd,152529,09/05/2024,10324914,TC,,2636413,560555542,PI,528,45412
INSERTED DETAIL,CAST - Private Sector Leasing,CAS03,Furniture,302,1255.9,Monarch Carpets,152579,23/05/2024,10325160,TC,,9343638,206596008,PI,1507.08,45393
INSERTED DETAIL,Safety and Resilience,EPL00,Subscriptions,421,4874.93,Make UK,152602,09/05/2024,10324946,TC,,5950172,905044750,PI,5849.92,45370
INSERTED DETAIL,CAST - Private Sector Leasing,CAS03,Private Sector Leasing Scheme Properties,148,2400,Stuart Wesley Webb,152664,16/05/2024,10324943,TC,,,,PN,2400,45419
INSERTED DETAIL,Car Parks General,CPK01,Maintenance of Equipment,301,489,Flowbird Smart City UK Ltd,152724,09/05/2024,10324935,TC,,4869035,821077453,PI,586.8,45413
INSERTED DETAIL,Domestic Waste Collection/Recycling,REF00,External Contractor & Operator,742,1260,Bulk Freight (Midlands) Ltd,152736,16/05/2024,10325128,TC,,2099724,439397896,PI,1512,45412
INSERTED DETAIL,Domestic Waste Collection/Recycling,REF00,External Contractor & Operator,742,2160,Bulk Freight (Midlands) Ltd,152736,16/05/2024,10325129,TC,,2099724,439397896,PI,2592,45417
INSERTED DETAIL,Domestic Waste Collection/Recycling,REF00,External Contractor & Operator,742,900,Bulk Freight (Midlands) Ltd,152736,16/05/2024,10325130,TC,,2099724,439397896,PI,1080,45412
INSERTED DETAIL,Domestic Waste Collection/Recycling,REF00,External Contractor & Operator,742,720,Bulk Freight (Midlands) Ltd,152736,16/05/2024,10325131,TC,,2099724,439397896,PI,864,45417
INSERTED DETAIL,Domestic Waste Collection/Recycling,REF00,External Contractor & Operator,742,720,Bulk Freight (Midlands) Ltd,152736,16/05/2024,10325132,TC,,2099724,439397896,PI,864,45403
INSERTED DETAIL,Domestic Waste Collection/Recycling,REF00,External Contractor & Operator,742,1980,Bulk Freight (Midlands) Ltd,152736,16/05/2024,10325133,TC,,2099724,439397896,PI,2376,45410
INSERTED DETAIL,Domestic Waste Collection/Recycling,REF00,External Contractor & Operator,742,1440,Bulk Freight (Midlands) Ltd,152736,16/05/2024,10325134,TC,,2099724,439397896,PI,1728,45410
INSERTED DETAIL,Domestic Waste Collection/Recycling,REF00,External Contractor & Operator,742,720,Bulk Freight (Midlands) Ltd,152736,23/05/2024,10325199,TC,,2099724,439397896,PI,864,45410
INSERTED DETAIL,Domestic Waste Collection/Recycling,REF00,External Contractor & Operator,742,1620,Bulk Freight (Midlands) Ltd,152736,23/05/2024,10325200,TC,,2099724,439397896,PI,1944,45410
INSERTED DETAIL,Domestic Waste Collection/Recycling,REF00,External Contractor & Operator,742,540,Bulk Freight (Midlands) Ltd,152736,23/05/2024,10325201,TC,,2099724,439397896,PI,648,45403
INSERTED DETAIL,Domestic Waste Collection/Recycling,REF00,External Contractor & Operator,742,2880,Bulk Freight (Midlands) Ltd,152736,23/05/2024,10325203,TC,,2099724,439397896,PI,3456,45403
INSERTED DETAIL,Domestic Waste Collection/Recycling,REF00,External Contractor & Operator,742,1800,Bulk Freight (Midlands) Ltd,152736,30/05/2024,10325282,TC,,2099724,439397896,PI,2160,45424
INSERTED DETAIL,Domestic Waste Collection/Recycling,REF00,External Contractor & Operator,742,1080,Bulk Freight (Midlands) Ltd,152736,30/05/2024,10325353,TC,,2099724,439397896,PI,1296,45424
INSERTED DETAIL,Domestic Waste Collection/Recycling,REF00,External Contractor & Operator,742,3240,Bulk Freight (Midlands) Ltd,152736,30/05/2024,10325457,TC,,2099724,439397896,PI,3888,45431
INSERTED DETAIL,Supervision and Management General,MAN00,Consultancy Costs,740,734.7,ARK Consultancy,152820,09/05/2024,10324969,TC,,10179621,618135745,PI,881.64,45413
INSERTED DETAIL,Sports Development,LSD06,Development Activities,450,540,Out of Hours Flowers,152836,16/05/2024,10325018,TC,,,,PI,540,45392
INSERTED DETAIL,Rounds Gardens demolition,RGS01,Capital Contract Payments,5000,333660,Frank O'Gara & Sons Ltd,152840,23/05/2024,10325323,CS,,3057185,759368671,PI,400392,45390
INSERTED DETAIL,Mobile telephones,TEL03,Telephone Expenses,371,3184.85,Daisy Communications,152877,30/05/2024,10324981,TC,,4145329,722471355,PN,3821.82,45413
INSERTED DETAIL,ITC & Support Services,CIS10,Hardware Maintenance,376,483.01,Crown Hosting Data Centres,152919,16/05/2024,10325055,TC,,,207000375,PN,579.61,45412
INSERTED DETAIL,CAST - Private Sector Leasing,CAS03,Private Sector Leasing Scheme Properties,148,1650,Mr Des Raj,152952,16/05/2024,10324939,TC,,,,PN,1650,45419
INSERTED DETAIL,The Benn Hall,BHL00,Events Tickets - Zero Rated,1405,9119.33,S17 Promotions,152963,23/05/2024,10325308,NT,,,,PN,9119.33,45432
INSERTED DETAIL,Maintenance of Customer Services Systems,CIS21,Software Maintenance,374,2500,Corpstar Investments Ltd T/A Logotech Systems,152994,23/05/2024,10325006,TC,,2529444,584228228,PI,3000,45390
INSERTED DETAIL,ITC & Support Services,CIS10,Consultancy Costs,740,2250,Placecube Ltd,153292,23/05/2024,10324925,TC,,9914106,308217522,PI,2700,45412
INSERTED DETAIL,CAST - Private Sector Leasing,CAS03,Private Sector Leasing Scheme Properties,148,2250,Gary Sly,153330,16/05/2024,10324940,TC,,,,PN,2250,45419
INSERTED DETAIL,Domestic Waste Collection/Recycling,REF00,Materials,303,845.65,Lee Atkins Ltd T/A Autosmart,153462,30/05/2024,10325402,TC,,9309281,200644849,PI,1014.78,45435
INSERTED DETAIL,CAST - Private Sector Leasing,CAS03,Private Sector Leasing Scheme Properties,148,2295,Mr David Wright,153479,16/05/2024,10324938,TC,,,,PN,2295,45419
INSERTED DETAIL,Corporate Assurance,RES40,Consultancy Costs,740,2600,Robert Walters Operations Ltd,153482,23/05/2024,10325084,TC,,3621607,927577481,PN,3120,45331
INSERTED DETAIL,Corporate Assurance,RES40,Consultancy Costs,740,2600,Robert Walters Operations Ltd,153482,23/05/2024,10325085,TC,,3621607,927577481,PN,3120,45380
INSERTED DETAIL,Corporate Assurance,RES40,Consultancy Costs,740,2600,Robert Walters Operations Ltd,153482,23/05/2024,10325086,TC,,3621607,927577481,PN,3120,45366
INSERTED DETAIL,Corporate Assurance,RES40,Consultancy Costs,740,2600,Robert Walters Operations Ltd,153482,23/05/2024,10325093,TC,,3621607,927577481,PN,3120,45380
INSERTED DETAIL,Corporate Assurance,RES40,Consultancy Costs,740,2600,Robert Walters Operations Ltd,153482,30/05/2024,10325318,TC,,3621607,927577481,PI,3120,45408
INSERTED DETAIL,Corporate Assurance,RES40,Consultancy Costs,740,1950,Robert Walters Operations Ltd,153482,30/05/2024,10325319,TC,,3621607,927577481,PI,2340,45408
INSERTED DETAIL,Corporate Assurance,RES40,Consultancy Costs,740,2600,Robert Walters Operations Ltd,153482,30/05/2024,10325320,TC,,3621607,927577481,PI,3120,45408
INSERTED DETAIL,Corporate Assurance,RES40,Consultancy Costs,740,1950,Robert Walters Operations Ltd,153482,30/05/2024,10325321,TC,,3621607,927577481,PI,2340,45408
INSERTED DETAIL,Regulatory Services,REG00,External Contractor & Operator,742,436,PDK Trading Ltd,153680,09/05/2024,10324839,TC,,,151408046,PN,523.2,45412
INSERTED DETAIL,Rainsbook Cemetery preparation,BUR06,Capital Contract Payments,5000,622,RPS Consulting Services Ltd,153907,09/05/2024,10324861,TC,,1470149,362749136,PI,746.4,45317
INSERTED DETAIL,Rainsbook Cemetery preparation,BUR06,Capital Contract Payments,5000,2100,RPS Consulting Services Ltd,153907,16/05/2024,10325061,TC,,1470149,362749136,PI,2520,45134
INSERTED DETAIL,Grounds Maintenance,PKS20,External Contractor & Operator,742,10332.21,Idverde Limited,153908,16/05/2024,10325021,TC,,3542918,190173669,PN,12398.65,45408
INSERTED DETAIL,Grounds Maintenance,PKS20,External Contractor & Operator,742,12085,Idverde Limited,153908,30/05/2024,10325412,TC,,3542918,190173669,PN,14502,45436
INSERTED DETAIL,Domestic Waste Collection/Recycling,REF00,External Contractor & Operator,742,75975.3,Sherbourne Recyclling Ltd,153920,09/05/2024,10324949,TC,,13227088,38229483,PI,91170.36,45413
INSERTED DETAIL,AGM Conservation/Documentation,AGM01,Materials,303,1270,Storage Aspects Ltd,153929,23/05/2024,10325236,TC,,10372762,251525524,PI,1524,45425
INSERTED DETAIL,Biart Place - Capital,BIA00,Capital Contract Payments,5000,684831.67,Willmott Dixon Construction Ltd,153930,16/05/2024,10325113,CS,,768173,19737796,PI,684831.67,45426
INSERTED DETAIL,Biart Place - Capital,BIA00,Capital Contract Payments,5000,13640,rg+P Ltd,153953,02/05/2024,10324848,TC,,3837194,747400832,PI,16368,45400
INSERTED DETAIL,Biart Place - Capital,BIA00,Capital Contract Payments,5000,2800,rg+P Ltd,153953,23/05/2024,10325206,TC,,3837194,747400832,PI,3360,45412
INSERTED DETAIL,Purchase of Vehicles,VHC00,Capital Contract Payments,5000,38140.58,Motus Commercials,153969,16/05/2024,10324727,TC,,653665,880984866,PI,45690.7,45398
INSERTED DETAIL,Purchase of Vehicles,VHC00,Capital Contract Payments,5000,38140.58,Motus Commercials,153969,23/05/2024,10324728,TC,,653665,880984866,PI,45690.7,45407
INSERTED DETAIL,Purchase of Vehicles,VHC00,Capital Contract Payments,5000,39765.58,Motus Commercials,153969,09/05/2024,10324729,TC,,653665,880984866,PI,47640.7,45397
INSERTED DETAIL,Purchase of Vehicles,VHC00,Capital Contract Payments,5000,39765.58,Motus Commercials,153969,23/05/2024,10324730,TC,,653665,880984866,PI,47640.7,45407
INSERTED DETAIL,Purchase of Vehicles,VHC00,Capital Contract Payments,5000,38140.58,Motus Commercials,153969,16/05/2024,10324731,TC,,653665,880984866,PI,45690.7,45398
INSERTED DETAIL,Purchase of Vehicles,VHC00,Capital Contract Payments,5000,38140.58,Motus Commercials,153969,09/05/2024,10324732,TC,,653665,880984866,PI,45690.7,45397
INSERTED DETAIL,Domestic Waste Collection/Recycling,REF00,Contract Hire,220,1319.8,Bennie Equipment Ltd,153989,09/05/2024,10324827,TC,,920238,119247666,PI,1583.76,45411
INSERTED DETAIL,Art Gallery and Museum,AGM00,Building cleaning,170,2183.88,Tenon FM Ltd,154001,23/05/2024,10324194,TC,,2176652,539208921,PN,49901.99,45382
INSERTED DETAIL,Sheltered Housing,AGP00,Building cleaning,170,14260.2,Tenon FM Ltd,154001,23/05/2024,10324194,TC,,2176652,539208921,PN,49901.99,45382
INSERTED DETAIL,The Benn Hall,BHL00,Building cleaning,170,2979.67,Tenon FM Ltd,154001,23/05/2024,10324194,TC,,2176652,539208921,PN,49901.99,45382
INSERTED DETAIL,CAST - Private Sector Leasing,CAS03,Building cleaning,170,2776.79,Tenon FM Ltd,154001,23/05/2024,10324194,TC,,2176652,539208921,PN,49901.99,45382
INSERTED DETAIL,Car Parks General,CPK01,Building cleaning,170,700.56,Tenon FM Ltd,154001,23/05/2024,10324194,TC,,2176652,539208921,PN,49901.99,45382
INSERTED DETAIL,Crematorium,CRM00,Building cleaning,170,1161.24,Tenon FM Ltd,154001,23/05/2024,10324194,TC,,2176652,539208921,PN,49901.99,45382
INSERTED DETAIL,Supervision and Management General,MAN00,Building cleaning,170,952.28,Tenon FM Ltd,154001,23/05/2024,10324194,TC,,2176652,539208921,PN,49901.99,45382
INSERTED DETAIL,Housing Management,MAN22,Building cleaning,170,3974.09,Tenon FM Ltd,154001,23/05/2024,10324194,TC,,2176652,539208921,PN,49901.99,45382
INSERTED DETAIL,Multi-Storey Flats,MSF00,Building cleaning,170,477.01,Tenon FM Ltd,154001,23/05/2024,10324194,TC,,2176652,539208921,PN,49901.99,45382
INSERTED DETAIL,Town Hall,OFF00,Building cleaning,170,6935.77,Tenon FM Ltd,154001,23/05/2024,10324194,TC,,2176652,539208921,PN,49901.99,45382
INSERTED DETAIL,Town Centre Public Conveniences,PCS00,Building cleaning,170,2977.18,Tenon FM Ltd,154001,23/05/2024,10324194,TC,,2176652,539208921,PN,49901.99,45382
INSERTED DETAIL,Parks,PKS00,Building cleaning,170,1193.14,Tenon FM Ltd,154001,23/05/2024,10324194,TC,,2176652,539208921,PN,49901.99,45382
INSERTED DETAIL,Grounds Maintenance,PKS20,Building cleaning,170,317.63,Tenon FM Ltd,154001,23/05/2024,10324194,TC,,2176652,539208921,PN,49901.99,45382
INSERTED DETAIL,WSU Depot,WDP00,Building cleaning,170,695.57,Tenon FM Ltd,154001,23/05/2024,10324194,TC,,2176652,539208921,PN,49901.99,45382
INSERTED DETAIL,UKSPF Capital - Albert Street Hoarding,UKC11,Capital Contract Payments,5000,640,Hive Creative Media Ltd,154039,02/05/2024,10324679,TC,,14699478,,PI,640,45405
INSERTED DETAIL,Sports Development,LSD06,Development Activities,450,600,The Ramblers Association,154068,09/05/2024,10324842,TC,,4458492,123361742,PI,600,45412
INSERTED DETAIL,Domestic Waste Collection/Recycling,REF00,Contract Hire,220,5718.96,De Lage Landen Leasing Ltd,154076,23/05/2024,10325234,TC,,2380043,,PI,6862.75,45403
INSERTED DETAIL,ITC & Support Services,CIS10,Hardware Maintenance,376,1950,Intrinsic Network Solutions,154147,09/05/2024,10324825,TC,,7754385,119482991,PI,2340,45411
INSERTED DETAIL,Street Cleansing General,STC00,Vehicle Repair and Maintenance,200,637.59,Hako Machines Ltd,154155,23/05/2024,10325204,TC,,1414225,294397803,PN,765.11,45413
INSERTED DETAIL,Sports Development,LSD06,Development Activities,450,550,Kirsty Leahy Productions,154255,16/05/2024,10324989,TC,,,,PI,550,45392
INSERTED DETAIL,The Benn Hall,BHL00,Purchases for Resale,305,1375.38,Sky Wines Ltd,154269,02/05/2024,10324723,TC,,7626958,367281867,PI,1650.46,45406
INSERTED DETAIL,The Benn Hall,BHL00,Purchases for Resale,305,2756.56,Sky Wines Ltd,154269,23/05/2024,10325147,TC,,7626958,367281867,PI,3307.87,45426
INSERTED DETAIL,Garage,WVR00,Vehicle Fuel,204,42721.15,BWOC LTD,154293,02/05/2024,10324633,TC,,3256076,681335336,PI,51265.39,45386
INSERTED DETAIL,Garage,WVR00,Vehicle Fuel,204,39942.27,BWOC LTD,154293,16/05/2024,10325107,TC,,3256076,681335336,PI,47930.72,45420
INSERTED DETAIL,Garage,WVR00,Vehicle Fuel,204,420,BWOC LTD,154293,23/05/2024,10325248,TC,,3256076,681335336,PI,504,45419
INSERTED DETAIL,The Benn Hall,BHL00,Events Tickets - Zero Rated,1405,5745,Tony Denton Promotions,154298,30/05/2024,10325373,TC,,,,PN,5745,45434
INSERTED DETAIL,Parks,PKS00,Debt Management Expenses,751,896.5,Ward Hadaway LLP,154312,16/05/2024,10324788,TC,,OC430614,176080853,PI,1075.8,45400
INSERTED DETAIL,Street Furniture,HIG01,Festive Lighting,463,2285,The Festive Lighting Company Ltd,154352,16/05/2024,10324725,TC,,4003902,753208933,PI,2742,45363
INSERTED DETAIL,Housing Management System,HCE08,Capital Contract Payments,5000,8400,4ward Thinking Ltd,154401,09/05/2024,10324823,TC,,7425285,350674989,PI,10080,45413
INSERTED DETAIL,The Benn Hall,BHL00,Events Tickets - Zero Rated,1405,1210.8,Honalee Media Ltd,154461,30/05/2024,10325360,NT,,,,PN,1210.8,45422
INSERTED DETAIL,WSU Depot,WDP00,Hardware Purchase,375,587.5,Webaspx Ltd,154473,02/05/2024,10324716,TC,,SC201416,274159095,PI,705,45399
INSERTED DETAIL,Street Cleansing General,STC00,Materials,303,2379,Future Street Smart Waste Ltd,154474,23/05/2024,10325149,TC,,11754008,428473864,PI,2854.8,45427
INSERTED DETAIL,Human Resources Centralised Services,RES31,Training fees,11,1110,Cardiac Health,154521,16/05/2024,10325108,TC,,,,PI,1110,45395
INSERTED DETAIL,Transformation Change Unit,TCU00,Consultancy Costs,740,2085,Milestone Consult Ltd,154531,23/05/2024,10325121,TC,,556117,68733666,PI,2502,45426
INSERTED DETAIL,Transformation Change Unit,TCU00,Consultancy Costs,740,4800,Milestone Consult Ltd,154531,23/05/2024,10325284,TC,,556117,68733666,PI,5760,45429
INSERTED DETAIL,The Benn Hall,BHL00,R&M External Contractors,100,570,Semper Security,154547,02/05/2024,10324844,TC,,13891546,,PI,684,45408
INSERTED DETAIL,Grounds Maintenance,PKS20,Contract Hire,220,530,Helpful Hire T/A Turfleet Hire,154819,09/05/2024,10324790,TC,,793419,194 5295 29,PI,636,45412
INSERTED DETAIL,Council Tax and NNDR Collection,CTX01,Software Purchase,373,38975,Voicescape Limited,154829,02/05/2024,10324743,TC,,10440336,256135510,PI,46770,45382
INSERTED DETAIL,Control Centre (HRA),CCE00,Telephone Expenses,371,3473.85,Enovation,154830,02/05/2024,10324792,TC,,4253883,790563507,PI,4168.62,45404
INSERTED DETAIL,Crime and Disorder Activities,CAD00,Development Activities,450,550,Heart of England Training Limited,154950,02/05/2024,10324700,TC,,1029331,695586859,PI,550,45308
INSERTED DETAIL,Housing Advice & Benefits Team,CAS00,Training fees,11,480,Housing Reviews Limited,154969,02/05/2024,10324741,TC,,5008207,GB944997163,PI,576,45363
INSERTED DETAIL,Unplanned Maintenance and Repair,UMR00,Other Insurance Premiums,440,5000,Belfor Uk Ltd,154979,16/05/2024,10325076,TC,,1369726,GB559678080,PN,5000,45405
INSERTED DETAIL,Financial Services,RES10,Recruitment Expenses,12,6596.64,OPUS People Solutions Ltd,155016,02/05/2024,10324698,TC,,10894663,342 0679 12,PI,7915.97,45397
INSERTED DETAIL,Housing Advice & Benefits Team,CAS00,Agency Staff,3,8021.35,OPUS People Solutions Ltd,155016,09/05/2024,10324890,TC,,10894663,342 0679 12,PN,36696.01,45406
INSERTED DETAIL,Control Centre (HRA),CCE00,Agency Staff,3,816.88,OPUS People Solutions Ltd,155016,09/05/2024,10324890,TC,,10894663,342 0679 12,PN,36696.01,45406
INSERTED DETAIL,Council Tax and NNDR Collection,CTX01,Agency Staff,3,1150.43,OPUS People Solutions Ltd,155016,09/05/2024,10324890,TC,,10894663,342 0679 12,PN,36696.01,45406
INSERTED DETAIL,Democratic Services,DEM10,Agency Staff,3,2320.53,OPUS People Solutions Ltd,155016,09/05/2024,10324890,TC,,10894663,342 0679 12,PN,36696.01,45406
INSERTED DETAIL,Development Strategy,ECD00,Agency Staff,3,1431.21,OPUS People Solutions Ltd,155016,09/05/2024,10324890,TC,,10894663,342 0679 12,PN,36696.01,45406
INSERTED DETAIL,Housing Management,MAN22,Agency Staff,3,2815.2,OPUS People Solutions Ltd,155016,09/05/2024,10324890,TC,,10894663,342 0679 12,PN,36696.01,45406
INSERTED DETAIL,Grounds Maintenance,PKS20,Agency Staff,3,4858,OPUS People Solutions Ltd,155016,09/05/2024,10324890,TC,,10894663,342 0679 12,PN,36696.01,45406
INSERTED DETAIL,Planning General/Income,PLN00,Agency Staff,3,2053.23,OPUS People Solutions Ltd,155016,09/05/2024,10324890,TC,,10894663,342 0679 12,PN,36696.01,45406
INSERTED DETAIL,Domestic Waste Collection/Recycling,REF00,Agency Staff,3,6233.07,OPUS People Solutions Ltd,155016,09/05/2024,10324890,TC,,10894663,342 0679 12,PN,36696.01,45406
INSERTED DETAIL,Transformation Change Unit,TCU00,Agency Staff,3,880.11,OPUS People Solutions Ltd,155016,09/05/2024,10324890,TC,,10894663,342 0679 12,PN,36696.01,45406
INSERTED DETAIL,Housing Advice & Benefits Team,CAS00,Agency Staff,3,5371.68,OPUS People Solutions Ltd,155016,16/05/2024,10324980,TC,,10894663,342 0679 12,PN,34923.79,45413
INSERTED DETAIL,Control Centre (HRA),CCE00,Agency Staff,3,890.96,OPUS People Solutions Ltd,155016,16/05/2024,10324980,TC,,10894663,342 0679 12,PN,34923.79,45413
INSERTED DETAIL,Council Tax and NNDR Collection,CTX01,Agency Staff,3,3338.59,OPUS People Solutions Ltd,155016,16/05/2024,10324980,TC,,10894663,342 0679 12,PN,34923.79,45413
INSERTED DETAIL,Democratic Services,DEM10,Agency Staff,3,2295.88,OPUS People Solutions Ltd,155016,16/05/2024,10324980,TC,,10894663,342 0679 12,PN,34923.79,45413
INSERTED DETAIL,Development Strategy,ECD00,Agency Staff,3,1357.36,OPUS People Solutions Ltd,155016,16/05/2024,10324980,TC,,10894663,342 0679 12,PN,34923.79,45413
INSERTED DETAIL,Housing Management,MAN22,Agency Staff,3,2497.04,OPUS People Solutions Ltd,155016,16/05/2024,10324980,TC,,10894663,342 0679 12,PN,34923.79,45413
INSERTED DETAIL,Grounds Maintenance,PKS20,Agency Staff,3,2009.53,OPUS People Solutions Ltd,155016,16/05/2024,10324980,TC,,10894663,342 0679 12,PN,34923.79,45413
INSERTED DETAIL,Planning General/Income,PLN00,Agency Staff,3,2046.47,OPUS People Solutions Ltd,155016,16/05/2024,10324980,TC,,10894663,342 0679 12,PN,34923.79,45413
INSERTED DETAIL,Domestic Waste Collection/Recycling,REF00,Agency Staff,3,7840.82,OPUS People Solutions Ltd,155016,16/05/2024,10324980,TC,,10894663,342 0679 12,PN,34923.79,45413
INSERTED DETAIL,Transformation Change Unit,TCU00,Agency Staff,3,955.15,OPUS People Solutions Ltd,155016,16/05/2024,10324980,TC,,10894663,342 0679 12,PN,34923.79,45413
INSERTED DETAIL,Unplanned Maintenance and Repair,UMR00,Agency Staff,3,499.68,OPUS People Solutions Ltd,155016,16/05/2024,10324980,TC,,10894663,342 0679 12,PN,34923.79,45413
INSERTED DETAIL,Housing Advice & Benefits Team,CAS00,Agency Staff,3,4134.8,OPUS People Solutions Ltd,155016,16/05/2024,10324982,TC,,10894663,342 0679 12,PN,25724.3,45419
INSERTED DETAIL,Control Centre (HRA),CCE00,Agency Staff,3,816.86,OPUS People Solutions Ltd,155016,16/05/2024,10324982,TC,,10894663,342 0679 12,PN,25724.3,45419
INSERTED DETAIL,Council Tax and NNDR Collection,CTX01,Agency Staff,3,3126.1,OPUS People Solutions Ltd,155016,16/05/2024,10324982,TC,,10894663,342 0679 12,PN,25724.3,45419
INSERTED DETAIL,Democratic Services,DEM10,Agency Staff,3,2300.81,OPUS People Solutions Ltd,155016,16/05/2024,10324982,TC,,10894663,342 0679 12,PN,25724.3,45419
INSERTED DETAIL,Legal Services,DEM20,Agency Staff,3,623.1,OPUS People Solutions Ltd,155016,16/05/2024,10324982,TC,,10894663,342 0679 12,PN,25724.3,45419
INSERTED DETAIL,Development Strategy,ECD00,Agency Staff,3,1413.49,OPUS People Solutions Ltd,155016,16/05/2024,10324982,TC,,10894663,342 0679 12,PN,25724.3,45419
INSERTED DETAIL,Grounds Maintenance,PKS20,Agency Staff,3,409.71,OPUS People Solutions Ltd,155016,16/05/2024,10324982,TC,,10894663,342 0679 12,PN,25724.3,45419
INSERTED DETAIL,Planning General/Income,PLN00,Agency Staff,3,2052.32,OPUS People Solutions Ltd,155016,16/05/2024,10324982,TC,,10894663,342 0679 12,PN,25724.3,45419
INSERTED DETAIL,Domestic Waste Collection/Recycling,REF00,Agency Staff,3,5134.86,OPUS People Solutions Ltd,155016,16/05/2024,10324982,TC,,10894663,342 0679 12,PN,25724.3,45419
INSERTED DETAIL,Transformation Change Unit,TCU00,Agency Staff,3,773.12,OPUS People Solutions Ltd,155016,16/05/2024,10324982,TC,,10894663,342 0679 12,PN,25724.3,45419
INSERTED DETAIL,Unplanned Maintenance and Repair,UMR00,Agency Staff,3,651.75,OPUS People Solutions Ltd,155016,16/05/2024,10324982,TC,,10894663,342 0679 12,PN,25724.3,45419
INSERTED DETAIL,Housing Advice & Benefits Team,CAS00,Agency Staff,3,5899.28,OPUS People Solutions Ltd,155016,23/05/2024,10325189,TC,,10894663,342 0679 12,PN,35286.88,45427
INSERTED DETAIL,Control Centre (HRA),CCE00,Agency Staff,3,23506.45,OPUS People Solutions Ltd,155016,23/05/2024,10325189,TC,,10894663,342 0679 12,PN,35286.88,45427
INSERTED DETAIL,"Communications, Consultation and Information Team",BTR20,Recruitment Expenses,12,6110.1,OPUS People Solutions Ltd,155016,23/05/2024,10325258,TC,,10894663,342 0679 12,PI,7332.12,45428
INSERTED DETAIL,Executive Director,SMT00,Consultancy Costs,740,4944.75,Sustainability West Midlands,155030,02/05/2024,10324763,TC,,4390508,926673592,PI,5933.7,45408
INSERTED DETAIL,Section 106 Grounds Maintenance,PKS16,External Contractor & Operator,742,8590,Exclusive Leisure Ltd,155038,23/05/2024,10325064,CS,,4048455,114307316,PI,10308,45420
INSERTED DETAIL,Planning General/Income,PLN00,Consultancy Costs,740,5883.75,Aspinall Verdi Limited,155117,09/05/2024,10324799,TC,,690 86 55,973 6146 94,PI,7060.5,45411
INSERTED DETAIL,UKSPF Capital - Albert Street Hoarding,UKC11,Capital Contract Payments,5000,5100,Vital Concept Limited,155148,02/05/2024,10324766,TC,,6115704,898742647,PI,5100,45408
INSERTED DETAIL,UKSPF Revenue- Town Centre Public Realm Improvements,UKA05,External Contractor & Operator,742,3116.65,Notice Board Company (UK) Ltd,155150,02/05/2024,10324449,TC,,4448932,794939064,PI,3739.98,45397
INSERTED DETAIL,Civic Responsibilities,CIV00,Special Events/Activities,447,30.5,Newton Newton Flags Ltd,155187,09/05/2024,10324850,TC,,7669766,613848531,PI,856.8,45406
INSERTED DETAIL,Town Centre Events,TWE00,Development Activities,450,683.5,Newton Newton Flags Ltd,155187,09/05/2024,10324850,TC,,7669766,613848531,PI,856.8,45406
INSERTED DETAIL,Homelessness Prevention,CAS06,Removals and Storage Fees,464,680,AD Keebles Removals & Storage,155189,16/05/2024,10325071,TC,,,695282396,PN,816,45421
INSERTED DETAIL,The Benn Hall,BHL00,Events Tickets - Zero Rated,1405,3592.9,Rob Green,155190,02/05/2024,10324803,TC,,,,PN,3592.9,45384
INSERTED DETAIL,The Benn Hall,BHL00,Events Tickets - Zero Rated,1405,8860.88,Elite Productions Group Limited,155194,09/05/2024,10324780,TC,,,,PN,8860.88,45411
INSERTED DETAIL,Development Strategy,ECD00,Consultancy Costs,740,3658,Urban Flow Ltd,155197,16/05/2024,10325027,TC,,7801816,122014383,PI,4389.6,45421
INSERTED DETAIL,Development Strategy,ECD00,Consultancy Costs,740,3658,Urban Flow Ltd,155197,30/05/2024,10325397,TC,,7801816,122014383,PI,4389.6,45436
detail,Supervision and Management General,MAN00,Movement Incentives,454,1000,Personal Redacted Data,155206,30/05/2024,10325378,TC,,,,PN,1000,45433
,Members Expenses,MEM00,Staff Overnight Accommodation,422,720.47,Travelodge,,16/05/2024,58364,,,,,CC,,
,Executive Director,SMT00,Staff Overnight Accommodation,422,1435.94,Travelodge,,16/05/2024,58364,,,,,CC,,
,Human Resources,RES30,Training fees,11,567.72,GOV Professional Development,,16/05/2024,58366,,,,,CC,,
,ITC & Support Services,CIS10,New Equipment,300,578.95,Amazon,,16/05/2024,58366,,,,,CC,,
,"Communications, Consultation and Information Team",BTR20,Publicity & Marketing,377,1259.71,Mailchimp,,16/05/2024,58366,,,,,CC,,
,ITC & Support Services,CIS10,New Equipment,300,1727.92,Amazon,,16/05/2024,58366,,,,,CC,,
,Purchase of Council House,PUR00,Capital Contract Payments,5000,200000,Brethertons ,,03/05/2024,58266,,,,,GL,,
,Purchase of Council House,PUR00,Capital Contract Payments,5000,6000,HMRC,,07/05/2024,58270,,,,,GL,,
,The Benn Hall,BHL00,Hospitality,331,760,Claires Creative Bakes,,16/05/2024,58331,,,,,GL,,
,Balance Sheet,BS,Collection Fund,9476,1455143,Cov & Warks Pooling,,17/05/2024,58333,,,,,GL,,
,Balance Sheet,BS,Collection Fund,9476,540048,WCC County Fund,,17/05/2024,58333,,,,,GL,,
,Balance Sheet,BS,Collection Fund,9476,2604559,DLUHC ,,20/05/2024,58339,,,,,GL,,
,Maintenance of Customer Services Systems,CIS21,Software Maintenance,374,921.31,Bottomline ,,20/05/2024,58339,,,,,GL,,
,Purchase of Council House,PUR00,Capital Contract Payments,5000,240000,Chadwick Lawrence LLP ,,23/05/2024,58361,,,,,GL,,
